[Event "Titled Tuesday Blitz December 13 Early 2022"]
[White "Jobava, Baadur"]
[Black "Ohanyan, Emin"]
[WhiteFideId "13601520"]
[BlackFideId "13312022"]
[WhiteElo "2582"]
[BlackElo "2352"]
[Result "1-0"]
[Round "08"]
[TimeControl "180+1"]
[Date "2022.12.13"]
[WhiteClock "0:00:33"]
[BlackClock "0:00:01"]

1. e4 {[%clk 0:02:59]}  e5 {[%clk 0:03:00]} 2. Nf3 {[%clk 0:02:58]}  Nc6 {[%clk 0:03:00]} 3. c3 {[%clk 0:02:58]}  Nf6 {[%clk 0:03:01]} 4. d3 {[%clk 0:02:58]}  d5 {[%clk 0:03:00]} 5. Qc2 {[%clk 0:02:58]}  Bc5 {[%clk 0:02:57]} 6. Be2 {[%clk 0:02:57]}  a5 {[%clk 0:02:57]} 7. a4 {[%clk 0:02:57]}  O-O {[%clk 0:02:57]} 8. O-O {[%clk 0:02:57]}  Re8 {[%clk 0:02:58]} 9. h3 {[%clk 0:02:56]}  h6 {[%clk 0:02:57]} 10. Re1 {[%clk 0:02:57]}  Be6 {[%clk 0:02:57]} 11. Na3 {[%clk 0:02:57]}  dxe4 {[%clk 0:02:24]} 12. dxe4 {[%clk 0:02:56]}  Nh5 {[%clk 0:02:25]} 13. Nb5 {[%clk 0:02:50]}  Bb6 {[%clk 0:02:20]} 14. Bf1 {[%clk 0:02:38]}  Qf6 {[%clk 0:02:12]} 15. Be3 {[%clk 0:02:35]}  Bxe3 {[%clk 0:01:42]} 16. Rxe3 {[%clk 0:02:35]}  Rac8 {[%clk 0:01:41]} 17. g3 {[%clk 0:02:30]}  g5 {[%clk 0:01:21]} 18. Nh2 {[%clk 0:02:13]}  Qe7 {[%clk 0:01:11]} 19. Ng4 {[%clk 0:02:10]}  Kg7 {[%clk 0:01:12]} 20. Rd1 {[%clk 0:01:52]}  Nf6 {[%clk 0:01:09]} 21. Nxf6 {[%clk 0:01:49]}  Qxf6 {[%clk 0:01:07]} 22. Kg2 {[%clk 0:01:38]}  Qe7 {[%clk 0:01:00]} 23. Be2 {[%clk 0:01:36]}  Red8 {[%clk 0:00:55]} 24. Bg4 {[%clk 0:01:35]}  Rxd1 {[%clk 0:00:52]} 25. Qxd1 {[%clk 0:01:36]}  Rd8 {[%clk 0:00:51]} 26. Qc2 {[%clk 0:01:27]}  Bxg4 {[%clk 0:00:35]} 27. hxg4 {[%clk 0:01:27]}  Nb8 {[%clk 0:00:36]} 28. Rd3 {[%clk 0:01:17]}  c6 {[%clk 0:00:32]} 29. Na3 {[%clk 0:01:17]}  Rxd3 {[%clk 0:00:23]} 30. Qxd3 {[%clk 0:01:18]}  Nd7 {[%clk 0:00:22]} 31. Nc4 {[%clk 0:01:13]}  Nc5 {[%clk 0:00:22]} 32. Qc2 {[%clk 0:01:13]}  Qc7 {[%clk 0:00:18]} 33. Ne3 {[%clk 0:01:10]}  Qd7 {[%clk 0:00:15]} 34. Nc4 {[%clk 0:01:05]}  Qc7 {[%clk 0:00:15]} 35. b4 {[%clk 0:01:04]}  axb4 {[%clk 0:00:15]} 36. cxb4 {[%clk 0:01:05]}  Ne6 {[%clk 0:00:15]} 37. Ne3 {[%clk 0:00:56]}  Nd4 {[%clk 0:00:16]} 38. Qc4 {[%clk 0:00:55]}  f6 {[%clk 0:00:13]} 39. a5 {[%clk 0:00:54]}  Qf7 {[%clk 0:00:12]} 40. Qc5 {[%clk 0:00:53]}  Qd7 {[%clk 0:00:09]} 41. Qa7 {[%clk 0:00:50]}  Nb5 {[%clk 0:00:08]} 42. Qb8 {[%clk 0:00:51]}  Nd4 {[%clk 0:00:08]} 43. Qa7 {[%clk 0:00:42]}  Nb5 {[%clk 0:00:08]} 44. Nf5+ {[%clk 0:00:42]}  Kh7 {[%clk 0:00:07]} 45. Qc5 {[%clk 0:00:37]}  Nd4 {[%clk 0:00:05]} 46. Qd6 {[%clk 0:00:31]}  Qxd6 {[%clk 0:00:01]} 47. Nxd6 {[%clk 0:00:32]}  Nc2 {[%clk 0:00:01]} 48. Nxb7 {[%clk 0:00:32]}  Nxb4 {[%clk 0:00:02]} 49. Nc5 {[%clk 0:00:33]}  Nd3 {[%clk 0:00:01]} 50. Nxd3 {[%clk 0:00:33]} 1-0


[Site "https://www.chess.com"]

[Event "Titled Tuesday Blitz December 13 Early 2022"]
[White "Kamsky, Gata"]
[Black "Rakhmanov, Aleksandr"]
[WhiteFideId "2000024"]
[BlackFideId "4173708"]
[WhiteElo "2666"]
[BlackElo "2530"]
[Result "1-0"]
[Round "08"]
[TimeControl "180+1"]
[Date "2022.12.13"]
[WhiteClock "0:00:14"]
[BlackClock "0:00:08"]

1. d4 {[%clk 0:02:59]}  Nf6 {[%clk 0:02:55]} 2. Bf4 {[%clk 0:02:58]}  d6 {[%clk 0:02:52]} 3. Nf3 {[%clk 0:02:56]}  Nbd7 {[%clk 0:02:51]} 4. h3 {[%clk 0:02:55]}  c5 {[%clk 0:02:52]} 5. e3 {[%clk 0:02:54]}  b6 {[%clk 0:02:52]} 6. Be2 {[%clk 0:02:51]}  Bb7 {[%clk 0:02:52]} 7. O-O {[%clk 0:02:51]}  g6 {[%clk 0:02:53]} 8. a4 {[%clk 0:02:51]}  a6 {[%clk 0:02:52]} 9. c4 {[%clk 0:02:49]}  Bg7 {[%clk 0:02:52]} 10. Nc3 {[%clk 0:02:48]}  O-O {[%clk 0:02:51]} 11. a5 {[%clk 0:02:47]}  bxa5 {[%clk 0:02:48]} 12. d5 {[%clk 0:02:47]}  Rb8 {[%clk 0:02:29]} 13. Qa4 {[%clk 0:02:46]}  Bc8 {[%clk 0:02:29]} 14. Rfb1 {[%clk 0:02:40]}  Rb4 {[%clk 0:02:28]} 15. Qxa5 {[%clk 0:02:39]}  Qxa5 {[%clk 0:02:28]} 16. Rxa5 {[%clk 0:02:39]}  Nh5 {[%clk 0:02:28]} 17. Bd3 {[%clk 0:02:06]}  Nxf4 {[%clk 0:02:22]} 18. exf4 {[%clk 0:02:06]}  Nb6 {[%clk 0:02:17]} 19. Nd2 {[%clk 0:02:04]}  Rxb2 {[%clk 0:01:58]} 20. Rxb2 {[%clk 0:02:03]}  Bxc3 {[%clk 0:01:58]} 21. Rba2 {[%clk 0:01:56]}  Bxa5 {[%clk 0:01:41]} 22. Rxa5 {[%clk 0:01:57]}  Bb7 {[%clk 0:01:36]} 23. f5 {[%clk 0:01:53]}  Rb8 {[%clk 0:01:35]} 24. fxg6 {[%clk 0:01:35]}  hxg6 {[%clk 0:01:34]} 25. h4 {[%clk 0:01:24]}  Nd7 {[%clk 0:01:33]} 26. f4 {[%clk 0:01:23]}  Bc8 {[%clk 0:01:32]} 27. Ne4 {[%clk 0:01:20]}  Rb3 {[%clk 0:01:28]} 28. Bf1 {[%clk 0:01:13]}  Nb6 {[%clk 0:01:23]} 29. Ra1 {[%clk 0:01:08]}  Rb4 {[%clk 0:01:21]} 30. Nd2 {[%clk 0:01:07]}  Rb2 {[%clk 0:01:11]} 31. Ne4 {[%clk 0:01:01]}  Kg7 {[%clk 0:01:09]} 32. Ng5 {[%clk 0:00:55]}  Rb4 {[%clk 0:00:57]} 33. Re1 {[%clk 0:00:51]}  Kf8 {[%clk 0:00:57]} 34. Nh7+ {[%clk 0:00:22]}  Ke8 {[%clk 0:00:57]} 35. Nf6+ {[%clk 0:00:22]}  Kd8 {[%clk 0:00:58]} 36. Ng8 {[%clk 0:00:22]}  e6 {[%clk 0:00:51]} 37. Nh6 {[%clk 0:00:21]}  Ke7 {[%clk 0:00:49]} 38. dxe6 {[%clk 0:00:20]}  fxe6 {[%clk 0:00:40]} 39. f5 {[%clk 0:00:20]}  gxf5 {[%clk 0:00:36]} 40. Nxf5+ {[%clk 0:00:20]}  Kd7 {[%clk 0:00:36]} 41. Ne3 {[%clk 0:00:21]}  Bb7 {[%clk 0:00:30]} 42. Bd3 {[%clk 0:00:20]}  Rb3 {[%clk 0:00:21]} 43. Bg6 {[%clk 0:00:17]}  Nc8 {[%clk 0:00:11]} 44. h5 {[%clk 0:00:17]}  Bc6 {[%clk 0:00:08]} 45. h6 {[%clk 0:00:16]}  Ne7 {[%clk 0:00:09]} 46. Bf7 {[%clk 0:00:16]}  Rb8 {[%clk 0:00:09]} 47. Bxe6+ {[%clk 0:00:15]}  Kc7 {[%clk 0:00:03]} 48. Rf1 {[%clk 0:00:15]}  Rh8 {[%clk 0:00:02]} 49. Rf7 {[%clk 0:00:15]}  Kd8 {[%clk 0:00:03]} 50. h7 {[%clk 0:00:15]}  Be8 {[%clk 0:00:02]} 51. Rg7 {[%clk 0:00:15]}  Ng6 {[%clk 0:00:03]} 52. Bf5 {[%clk 0:00:14]}  Nf8 {[%clk 0:00:02]} 53. Nd5 {[%clk 0:00:15]}  Bd7 {[%clk 0:00:02]} 54. Bxd7 {[%clk 0:00:14]}  Rxh7 {[%clk 0:00:02]} 55. Rg8 {[%clk 0:00:13]}  Kxd7 {[%clk 0:00:02]} 56. Rxf8 {[%clk 0:00:14]}  Rg7 {[%clk 0:00:03]} 57. Ra8 {[%clk 0:00:13]}  Ke6 {[%clk 0:00:03]} 58. Rxa6 {[%clk 0:00:13]}  Ke5 {[%clk 0:00:04]} 59. Ra4 {[%clk 0:00:12]}  Kd4 {[%clk 0:00:04]} 60. Kf2 {[%clk 0:00:12]}  Rf7+ {[%clk 0:00:04]} 61. Kg3 {[%clk 0:00:12]}  Rg7+ {[%clk 0:00:05]} 62. Kf3 {[%clk 0:00:13]}  Rf7+ {[%clk 0:00:05]} 63. Nf4 {[%clk 0:00:13]}  Ke5 {[%clk 0:00:05]} 64. g3 {[%clk 0:00:14]}  Kd4 {[%clk 0:00:06]} 65. Kg4 {[%clk 0:00:13]}  Rg7+ {[%clk 0:00:05]} 66. Kh4 {[%clk 0:00:13]}  Rh7+ {[%clk 0:00:05]} 67. Nh5 {[%clk 0:00:13]}  Rh8 {[%clk 0:00:05]} 68. g4 {[%clk 0:00:13]}  Rf8 {[%clk 0:00:06]} 69. g5 {[%clk 0:00:13]}  Rf1 {[%clk 0:00:07]} 70. g6 {[%clk 0:00:14]}  Ke5 {[%clk 0:00:07]} 71. Kg5 {[%clk 0:00:14]}  Rg1+ {[%clk 0:00:08]} 72. Kh6 {[%clk 0:00:14]}  Kf5 {[%clk 0:00:08]} 73. g7 {[%clk 0:00:14]} 1-0


[Site "https://www.chess.com"]

[Event "Titled Tuesday Blitz December 13 Early 2022"]
[White "Keymer, Vincent"]
[Black "Babazada, Khazar"]
[WhiteFideId "12940690"]
[BlackFideId "13413554"]
[WhiteElo "2600"]
[BlackElo "2359"]
[Result "0-1"]
[Round "08"]
[TimeControl "180+1"]
[Date "2022.12.13"]
[WhiteClock "0:00:04"]
[BlackClock "0:00:43"]

1. Nf3 {[%clk 0:03:00]}  d6 {[%clk 0:02:59]} 2. d4 {[%clk 0:03:00]}  Nd7 {[%clk 0:02:59]} 3. c4 {[%clk 0:02:57]}  Ngf6 {[%clk 0:03:00]} 4. Nc3 {[%clk 0:02:57]}  e5 {[%clk 0:03:00]} 5. g3 {[%clk 0:02:56]}  g6 {[%clk 0:02:59]} 6. Bg2 {[%clk 0:02:56]}  Bg7 {[%clk 0:02:59]} 7. O-O {[%clk 0:02:57]}  O-O {[%clk 0:02:59]} 8. e4 {[%clk 0:02:57]}  a6 {[%clk 0:02:59]} 9. h3 {[%clk 0:02:57]}  exd4 {[%clk 0:02:59]} 10. Nxd4 {[%clk 0:02:57]}  Re8 {[%clk 0:03:00]} 11. Be3 {[%clk 0:02:55]}  Rb8 {[%clk 0:03:00]} 12. b3 {[%clk 0:02:55]}  c5 {[%clk 0:02:53]} 13. Nde2 {[%clk 0:02:55]}  b5 {[%clk 0:02:54]} 14. Qxd6 {[%clk 0:02:54]}  b4 {[%clk 0:02:49]} 15. Na4 {[%clk 0:02:54]}  Nxe4 {[%clk 0:02:46]} 16. Bxe4 {[%clk 0:02:54]}  Rxe4 {[%clk 0:02:47]} 17. Rad1 {[%clk 0:02:50]}  Qe8 {[%clk 0:02:43]} 18. Nxc5 {[%clk 0:02:00]}  Rxe3 {[%clk 0:02:40]} 19. Nxd7 {[%clk 0:01:56]}  Bxd7 {[%clk 0:02:21]} 20. fxe3 {[%clk 0:01:53]}  Bxh3 {[%clk 0:02:18]} 21. Rf2 {[%clk 0:01:44]}  Be5 {[%clk 0:02:15]} 22. Qd5 {[%clk 0:01:40]}  Bg4 {[%clk 0:02:07]} 23. Kg2 {[%clk 0:01:31]}  Be6 {[%clk 0:01:59]} 24. Qf3 {[%clk 0:01:24]}  h5 {[%clk 0:01:49]} 25. Rd2 {[%clk 0:01:14]}  Rb6 {[%clk 0:01:27]} 26. Nf4 {[%clk 0:01:00]}  Bg4 {[%clk 0:01:25]} 27. Qd5 {[%clk 0:00:57]}  Rd6 {[%clk 0:01:24]} 28. Qe4 {[%clk 0:00:57]}  Bf5 {[%clk 0:01:23]} 29. Qf3 {[%clk 0:00:29]}  Rxd2 {[%clk 0:01:22]} 30. Rxd2 {[%clk 0:00:29]}  Bc3 {[%clk 0:01:23]} 31. Qe2 {[%clk 0:00:22]}  Qe4+ {[%clk 0:01:18]} 32. Kg1 {[%clk 0:00:18]}  Bxd2 {[%clk 0:01:01]} 33. Qxd2 {[%clk 0:00:19]}  Qf3 {[%clk 0:01:02]} 34. Qf2 {[%clk 0:00:19]}  Qd1+ {[%clk 0:01:02]} 35. Qf1 {[%clk 0:00:19]}  Qd2 {[%clk 0:01:03]} 36. Qf2 {[%clk 0:00:19]}  Qc1+ {[%clk 0:01:03]} 37. Kh2 {[%clk 0:00:14]}  Be4 {[%clk 0:01:03]} 38. Ng2 {[%clk 0:00:11]}  a5 {[%clk 0:01:03]} 39. Qe2 {[%clk 0:00:08]}  Kf8 {[%clk 0:00:51]} 40. Ne1 {[%clk 0:00:03]}  Qc3 {[%clk 0:00:48]} 41. Kg1 {[%clk 0:00:03]}  Qe5 {[%clk 0:00:47]} 42. Kf2 {[%clk 0:00:02]}  Qf5+ {[%clk 0:00:46]} 43. Kg1 {[%clk 0:00:02]}  Qh3 {[%clk 0:00:47]} 44. Qh2 {[%clk 0:00:02]}  Qd7 {[%clk 0:00:46]} 45. Qf2 {[%clk 0:00:02]}  Qd1 {[%clk 0:00:43]} 46. Kh2 {[%clk 0:00:01]}  Ke7 {[%clk 0:00:42]} 47. Ng2 {[%clk 0:00:02]}  Qc2 {[%clk 0:00:41]} 48. Qxc2 {[%clk 0:00:01]}  Bxc2 {[%clk 0:00:42]} 49. Nf4 {[%clk 0:00:01]}  Bb1 {[%clk 0:00:43]} 50. Nd5+ {[%clk 0:00:01]}  Kd6 {[%clk 0:00:43]} 51. Nf6 {[%clk 0:00:01]}  Bxa2 {[%clk 0:00:43]} 52. Ne4+ {[%clk 0:00:02]}  Kc6 {[%clk 0:00:43]} 53. Nd2 {[%clk 0:00:02]}  Bxb3 {[%clk 0:00:43]} 54. Nxb3 {[%clk 0:00:03]}  a4 {[%clk 0:00:44]} 55. Nd2 {[%clk 0:00:02]}  Kc5 {[%clk 0:00:42]} 56. Kg2 {[%clk 0:00:03]}  b3 {[%clk 0:00:42]} 57. Kf2 {[%clk 0:00:03]}  Kb4 {[%clk 0:00:43]} 58. Ke2 {[%clk 0:00:03]}  a3 {[%clk 0:00:44]} 59. c5 {[%clk 0:00:04]}  a2 {[%clk 0:00:43]} 0-1


[Site "https://www.chess.com"]

[Event "Titled Tuesday Blitz December 13 Early 2022"]
[White "Khamdamova, Afruza"]
[Black "Zaksaite, Salomeja"]
[WhiteFideId "14210444"]
[BlackFideId "12801496"]
[WhiteElo "2018"]
[BlackElo "2079"]
[Result "0-1"]
[Round "08"]
[TimeControl "180+1"]
[Date "2022.12.14"]
[WhiteClock "0:00:10"]
[BlackClock "0:01:49"]

1. e4 {[%clk 0:03:00]}  e5 {[%clk 0:02:57]} 2. Nf3 {[%clk 0:03:00]}  Nc6 {[%clk 0:02:57]} 3. Bb5 {[%clk 0:02:59]}  a6 {[%clk 0:02:56]} 4. Ba4 {[%clk 0:02:59]}  Nf6 {[%clk 0:02:57]} 5. O-O {[%clk 0:02:59]}  Nxe4 {[%clk 0:02:56]} 6. d4 {[%clk 0:02:59]}  b5 {[%clk 0:02:56]} 7. Bb3 {[%clk 0:02:59]}  d5 {[%clk 0:02:57]} 8. dxe5 {[%clk 0:02:59]}  Be6 {[%clk 0:02:58]} 9. c3 {[%clk 0:02:59]}  Bc5 {[%clk 0:02:40]} 10. Nbd2 {[%clk 0:02:46]}  O-O {[%clk 0:02:35]} 11. Bc2 {[%clk 0:02:46]}  Nxf2 {[%clk 0:02:35]} 12. Rxf2 {[%clk 0:02:45]}  f6 {[%clk 0:02:35]} 13. exf6 {[%clk 0:02:34]}  Qxf6 {[%clk 0:02:35]} 14. Nb3 {[%clk 0:01:59]}  Bxf2+ {[%clk 0:02:33]} 15. Kxf2 {[%clk 0:01:59]}  Ne5 {[%clk 0:02:31]} 16. Nd4 {[%clk 0:01:54]}  Bg4 {[%clk 0:02:25]} 17. Kg1 {[%clk 0:01:08]}  c5 {[%clk 0:02:11]} 18. Ne2 {[%clk 0:00:24]}  Nxf3+ {[%clk 0:02:04]} 19. gxf3 {[%clk 0:00:23]}  Qxf3 {[%clk 0:01:54]} 20. Qd3 {[%clk 0:00:11]}  Qf2+ {[%clk 0:01:50]} 21. Kh1 {[%clk 0:00:10]}  Bf3+ {[%clk 0:01:49]} 0-1


[Site "https://www.chess.com"]

[Event "Titled Tuesday Blitz December 13 Early 2022"]
[White "Kirillov, Dmitry"]
[Black "Stijve, Theo"]
[WhiteFideId "34180572"]
[BlackFideId "1331132"]
[WhiteElo "2111"]
[BlackElo "2256"]
[Result "1-0"]
[Round "08"]
[TimeControl "180+1"]
[Date "2022.12.14"]
[WhiteClock "0:00:08"]
[BlackClock "0:00:17"]

1. e4 {[%clk 0:03:00]}  e5 {[%clk 0:02:58]} 2. Nf3 {[%clk 0:03:00]}  Nf6 {[%clk 0:02:57]} 3. Nxe5 {[%clk 0:03:00]}  Nxe4 {[%clk 0:02:58]} 4. Qe2 {[%clk 0:02:59]}  Qe7 {[%clk 0:02:58]} 5. Qxe4 {[%clk 0:02:59]}  d6 {[%clk 0:02:58]} 6. d4 {[%clk 0:02:59]}  dxe5 {[%clk 0:02:59]} 7. dxe5 {[%clk 0:02:59]}  Nc6 {[%clk 0:02:59]} 8. Bf4 {[%clk 0:02:56]}  g5 {[%clk 0:02:58]} 9. Bd2 {[%clk 0:02:42]}  f5 {[%clk 0:02:57]} 10. Qa4 {[%clk 0:02:34]}  Qxe5+ {[%clk 0:02:36]} 11. Be2 {[%clk 0:02:34]}  Qxb2 {[%clk 0:02:36]} 12. O-O {[%clk 0:01:56]}  Bg7 {[%clk 0:02:26]} 13. Nc3 {[%clk 0:01:46]}  Bxc3 {[%clk 0:01:56]} 14. Rab1 {[%clk 0:01:44]}  Qxb1 {[%clk 0:01:55]} 15. Bxc3 {[%clk 0:01:34]}  Qb6 {[%clk 0:01:40]} 16. Bh5+ {[%clk 0:01:30]}  Kd8 {[%clk 0:01:32]} 17. Rd1+ {[%clk 0:01:26]}  Bd7 {[%clk 0:01:31]} 18. Bxh8 {[%clk 0:01:10]}  Qb4 {[%clk 0:01:03]} 19. Bf6+ {[%clk 0:00:51]}  Kc8 {[%clk 0:01:01]} 20. Qxb4 {[%clk 0:00:50]}  Nxb4 {[%clk 0:01:01]} 21. Be8 {[%clk 0:00:51]}  c6 {[%clk 0:00:52]} 22. Bxd7+ {[%clk 0:00:41]}  Kc7 {[%clk 0:00:50]} 23. Be5+ {[%clk 0:00:42]}  Kb6 {[%clk 0:00:50]} 24. Bxf5 {[%clk 0:00:30]}  Nxa2 {[%clk 0:00:50]} 25. c3 {[%clk 0:00:19]}  Re8 {[%clk 0:00:48]} 26. Rb1+ {[%clk 0:00:13]}  Ka6 {[%clk 0:00:42]} 27. Bd4 {[%clk 0:00:10]}  c5 {[%clk 0:00:36]} 28. Bd3+ {[%clk 0:00:05]}  Ka5 {[%clk 0:00:28]} 29. Bxc5 {[%clk 0:00:05]}  a6 {[%clk 0:00:24]} 30. Ra1 {[%clk 0:00:05]}  Ka4 {[%clk 0:00:20]} 31. Bc4 {[%clk 0:00:05]}  Re1+ {[%clk 0:00:17]} 32. Rxe1 {[%clk 0:00:04]}  b5 {[%clk 0:00:17]} 33. Bxa2 {[%clk 0:00:04]}  b4 {[%clk 0:00:17]} 34. Bxb4 {[%clk 0:00:04]}  a5 {[%clk 0:00:17]} 35. Re5 {[%clk 0:00:05]}  axb4 {[%clk 0:00:16]} 36. cxb4 {[%clk 0:00:06]}  Kxb4 {[%clk 0:00:17]} 37. Rxg5 {[%clk 0:00:07]}  Ka3 {[%clk 0:00:17]} 38. Rh5 {[%clk 0:00:08]} 1-0


[Site "https://www.chess.com"]

[Event "Titled Tuesday Blitz December 13 Early 2022"]
[White "Korchmar, Vasiliy"]
[Black "Goltseva, Ekaterina"]
[WhiteFideId "24131750"]
[BlackFideId "24173770"]
[WhiteElo "2370"]
[BlackElo "2200"]
[Result "1-0"]
[Round "08"]
[TimeControl "180+1"]
[Date "2022.12.14"]
[WhiteClock "0:00:31"]
[BlackClock "0:00:02"]

1. e4 {[%clk 0:02:55]}  c5 {[%clk 0:02:35]} 2. Nf3 {[%clk 0:02:54]}  e6 {[%clk 0:02:34]} 3. d4 {[%clk 0:02:54]}  cxd4 {[%clk 0:02:34]} 4. Nxd4 {[%clk 0:02:55]}  Nf6 {[%clk 0:02:35]} 5. Nc3 {[%clk 0:02:55]}  Nc6 {[%clk 0:02:33]} 6. Be2 {[%clk 0:02:48]}  Bb4 {[%clk 0:02:25]} 7. O-O {[%clk 0:02:47]}  O-O {[%clk 0:02:21]} 8. Nxc6 {[%clk 0:02:38]}  bxc6 {[%clk 0:02:18]} 9. e5 {[%clk 0:02:38]}  Bxc3 {[%clk 0:02:12]} 10. bxc3 {[%clk 0:02:37]}  Nd5 {[%clk 0:02:13]} 11. Qd4 {[%clk 0:02:28]}  f6 {[%clk 0:02:03]} 12. c4 {[%clk 0:02:21]}  fxe5 {[%clk 0:02:00]} 13. Qxe5 {[%clk 0:02:22]}  Nf6 {[%clk 0:01:55]} 14. Ba3 {[%clk 0:02:20]}  Rf7 {[%clk 0:01:48]} 15. Bd6 {[%clk 0:02:19]}  Ne8 {[%clk 0:01:38]} 16. Rad1 {[%clk 0:02:00]}  Rf5 {[%clk 0:01:35]} 17. Qg3 {[%clk 0:01:56]}  Nxd6 {[%clk 0:01:31]} 18. Rxd6 {[%clk 0:01:57]}  Qf6 {[%clk 0:01:19]} 19. Bd3 {[%clk 0:01:28]}  Rg5 {[%clk 0:01:15]} 20. Qh3 {[%clk 0:01:28]}  g6 {[%clk 0:01:02]} 21. f4 {[%clk 0:01:29]}  Ra5 {[%clk 0:01:00]} 22. f5 {[%clk 0:01:22]}  gxf5 {[%clk 0:00:30]} 23. Bxf5 {[%clk 0:01:21]}  Rxf5 {[%clk 0:00:15]} 24. Rxf5 {[%clk 0:01:01]}  Qxf5 {[%clk 0:00:15]} 25. Qg3+ {[%clk 0:01:02]}  Qg6 {[%clk 0:00:14]} 26. Qe5 {[%clk 0:01:03]}  Rb8 {[%clk 0:00:12]} 27. h3 {[%clk 0:00:51]}  Rb1+ {[%clk 0:00:10]} 28. Kh2 {[%clk 0:00:51]}  Rf1 {[%clk 0:00:05]} 29. Rd3 {[%clk 0:00:49]}  Rf5 {[%clk 0:00:04]} 30. Qb8 {[%clk 0:00:45]}  Qe8 {[%clk 0:00:04]} 31. Rg3+ {[%clk 0:00:38]}  Kf7 {[%clk 0:00:04]} 32. Qxa7 {[%clk 0:00:36]}  Rf6 {[%clk 0:00:03]} 33. a4 {[%clk 0:00:34]}  Qe7 {[%clk 0:00:03]} 34. Qb8 {[%clk 0:00:33]}  Qd8 {[%clk 0:00:02]} 35. a5 {[%clk 0:00:32]}  d5 {[%clk 0:00:03]} 36. a6 {[%clk 0:00:31]}  dxc4 {[%clk 0:00:02]} 37. a7 {[%clk 0:00:31]} 1-0


[Site "https://www.chess.com"]

[Event "Titled Tuesday Blitz December 13 Early 2022"]
[White "Kriti Mayur Patel"]
[Black "Makhmudov, Shukhrat"]
[WhiteFideId "35061780"]
[BlackFideId "14200775"]
[WhiteElo "1306"]
[BlackElo "2135"]
[Result "1-0"]
[Round "08"]
[TimeControl "180+1"]
[Date "2022.12.14"]
[WhiteClock "0:00:22"]
[BlackClock "0:01:14"]

1. e4 {[%clk 0:03:00]}  e5 {[%clk 0:02:58]} 2. Nf3 {[%clk 0:03:00]}  Nc6 {[%clk 0:02:59]} 3. Bc4 {[%clk 0:02:59]}  Nf6 {[%clk 0:02:52]} 4. d3 {[%clk 0:02:58]}  Bc5 {[%clk 0:02:50]} 5. c3 {[%clk 0:02:58]}  Bb6 {[%clk 0:02:50]} 6. Nbd2 {[%clk 0:02:59]}  d6 {[%clk 0:02:50]} 7. Bb3 {[%clk 0:02:59]}  Ne7 {[%clk 0:02:50]} 8. h3 {[%clk 0:02:39]}  c6 {[%clk 0:02:50]} 9. Nf1 {[%clk 0:02:39]}  Ng6 {[%clk 0:02:49]} 10. Ng3 {[%clk 0:02:39]}  O-O {[%clk 0:02:49]} 11. O-O {[%clk 0:02:39]}  h6 {[%clk 0:02:49]} 12. Nh2 {[%clk 0:02:34]}  d5 {[%clk 0:02:49]} 13. Qf3 {[%clk 0:02:34]}  Nh4 {[%clk 0:02:37]} 14. Qe2 {[%clk 0:02:23]}  Re8 {[%clk 0:02:32]} 15. Nh5 {[%clk 0:02:14]}  Ng6 {[%clk 0:02:20]} 16. Qf3 {[%clk 0:02:05]}  Nxh5 {[%clk 0:02:12]} 17. Qxh5 {[%clk 0:02:04]}  dxe4 {[%clk 0:02:12]} 18. Qxg6 {[%clk 0:02:01]}  Be6 {[%clk 0:02:06]} 19. Qxe4 {[%clk 0:01:57]}  Bd5 {[%clk 0:02:03]} 20. Qg4 {[%clk 0:01:49]}  Re6 {[%clk 0:01:50]} 21. Be3 {[%clk 0:01:14]}  Rg6 {[%clk 0:01:46]} 22. Bxd5 {[%clk 0:00:35]}  Rxg4 {[%clk 0:01:43]} 23. Bxf7+ {[%clk 0:00:35]}  Kxf7 {[%clk 0:01:44]} 24. Nxg4 {[%clk 0:00:36]}  Bc7 {[%clk 0:01:37]} 25. d4 {[%clk 0:00:32]}  e4 {[%clk 0:01:26]} 26. f3 {[%clk 0:00:27]}  exf3 {[%clk 0:01:25]} 27. Rxf3+ {[%clk 0:00:27]}  Kg8 {[%clk 0:01:24]} 28. Raf1 {[%clk 0:00:27]}  Qd5 {[%clk 0:01:19]} 29. Bxh6 {[%clk 0:00:20]}  gxh6 {[%clk 0:01:15]} 30. Nf6+ {[%clk 0:00:20]}  Kg7 {[%clk 0:01:14]} 31. Nxd5 {[%clk 0:00:21]}  cxd5 {[%clk 0:01:14]} 32. Rf7+ {[%clk 0:00:21]}  Kg6 {[%clk 0:01:14]} 33. Rxc7 {[%clk 0:00:22]} 1-0


[Site "https://www.chess.com"]

[Event "Titled Tuesday Blitz December 13 Early 2022"]
[White "Krzywda, Andrzej"]
[Black "Bazarov, Konstantin"]
[WhiteFideId "1114565"]
[BlackFideId "4137000"]
[WhiteElo "2149"]
[BlackElo "2228"]
[Result "0-1"]
[Round "08"]
[TimeControl "180+1"]
[Date "2022.12.14"]
[WhiteClock "0:01:03"]
[BlackClock "0:01:55"]

1. e4 {[%clk 0:03:00]}  c6 {[%clk 0:02:59]} 2. d4 {[%clk 0:02:59]}  d5 {[%clk 0:03:00]} 3. exd5 {[%clk 0:03:00]}  cxd5 {[%clk 0:03:00]} 4. Bd3 {[%clk 0:03:01]}  Nc6 {[%clk 0:02:59]} 5. c3 {[%clk 0:03:01]}  Nf6 {[%clk 0:03:00]} 6. Bf4 {[%clk 0:03:01]}  Bg4 {[%clk 0:02:59]} 7. Qb3 {[%clk 0:03:01]}  Qd7 {[%clk 0:02:59]} 8. Nd2 {[%clk 0:03:01]}  e6 {[%clk 0:02:59]} 9. Ngf3 {[%clk 0:03:01]}  Bxf3 {[%clk 0:02:56]} 10. Nxf3 {[%clk 0:03:01]}  Bd6 {[%clk 0:02:56]} 11. Bxd6 {[%clk 0:02:59]}  Qxd6 {[%clk 0:02:56]} 12. O-O {[%clk 0:02:59]}  O-O {[%clk 0:02:54]} 13. Rae1 {[%clk 0:03:00]}  Nd7 {[%clk 0:02:51]} 14. Qc2 {[%clk 0:02:59]}  g6 {[%clk 0:02:47]} 15. Qe2 {[%clk 0:02:58]}  Qf4 {[%clk 0:02:42]} 16. g3 {[%clk 0:02:58]}  Qf6 {[%clk 0:02:42]} 17. Kg2 {[%clk 0:02:54]}  a6 {[%clk 0:02:40]} 18. a4 {[%clk 0:02:53]}  Rfe8 {[%clk 0:02:39]} 19. Ne5 {[%clk 0:02:48]}  Ncxe5 {[%clk 0:02:33]} 20. dxe5 {[%clk 0:02:49]}  Qe7 {[%clk 0:02:33]} 21. h4 {[%clk 0:02:42]}  Rac8 {[%clk 0:02:29]} 22. h5 {[%clk 0:02:40]}  Kg7 {[%clk 0:02:25]} 23. Rh1 {[%clk 0:02:37]}  Qg5 {[%clk 0:02:22]} 24. f4 {[%clk 0:02:34]}  Qe7 {[%clk 0:02:21]} 25. Qg4 {[%clk 0:02:34]}  Rh8 {[%clk 0:02:20]} 26. h6+ {[%clk 0:02:20]}  Kf8 {[%clk 0:02:18]} 27. Rhf1 {[%clk 0:02:06]}  Ke8 {[%clk 0:02:16]} 28. a5 {[%clk 0:01:51]}  Kd8 {[%clk 0:02:09]} 29. Qe2 {[%clk 0:01:47]}  Qc5 {[%clk 0:02:06]} 30. Qe3 {[%clk 0:01:28]}  Qxa5 {[%clk 0:02:02]} 31. Ra1 {[%clk 0:01:20]}  Qb6 {[%clk 0:02:01]} 32. Qf3 {[%clk 0:01:07]}  Qxb2+ {[%clk 0:01:58]} 33. Rf2 {[%clk 0:01:03]}  Qxa1 {[%clk 0:01:55]} 0-1


[Site "https://www.chess.com"]